fUST/lending_fUST_20251104
["ID","MTS","AMOUNT","RATE_DAILY","PERIOD"]
[392989176,1762200636498,-1000.0,0.00022522,2]
[392989177,1762200636508,-587.0,0.00022541,2]
[392989178,1762200636517,-1000.0,0.00022675,2]
[392989179,1762200636526,-460.0,0.00022686,2]
[392989180,1762200636535,-270.0455652,0.00022808,2]
[392989181,1762200636544,-1045.0,0.00022829,2]
[392989182,1762200636554,-226.32176165,0.00022848,2]
[392989183,1762200636563,-151.0,0.00022919,7]
[392989184,1762200636573,-151.0,0.00022919,7]
[392989185,1762200636582,-151.0,0.00022919,7]
[392989186,1762200636663,-151.0,0.00023,7]
[392989187,1762200636673,-151.0,0.00023,7]
[392989188,1762200636682,-1500.0,0.00023001,2]
[392989189,1762200636691,-404.23255672,0.00023031,2]
[392989190,1762200636700,-1615.31329666,0.00023031,2]
[392989191,1762200636709,-221.89415266,0.00023031,2]
[392989192,1762200636719,-596.42345436,0.00023031,2]
[392989193,1762200636728,-2385.69381744,0.00023031,2]
[392989194,1762200636737,-5367.81108925,0.00023031,2]
[392989195,1762200636747,-831.1217287,0.00023031,2]
[392989196,1762200636757,-3321.16242789,0.00023031,2]
[392989197,1762200636767,-1500.0,0.0002307,2]
[392989198,1762200636777,-949.83636069,0.00023223,2]
[392989199,1762200636786,-560.0,0.00023233,2]
[392989200,1762200636797,-280.03725112,0.00023356,2]
[392989201,1762200636807,-1045.0,0.00023513,2]
[392989202,1762200636816,-2000.0,0.00023549,2]
[392989203,1762200636825,-2000.0,0.00023618,2]
[392989204,1762200636835,-1737.72771548,0.00023672,2]
[392989205,1762200636844,-660.0,0.00023781,2]
[392989206,1762200636853,-402.21942907,0.00023832,4]
[392989207,1762200636863,-950.0,0.00023881,2]
[392989208,1762200636872,-1045.0,0.00023883,2]
[392989209,1762200636881,-290.39862941,0.00023904,2]
[392989210,1762200636891,-950.0,0.00023927,2]
[392989211,1762200636900,-1000.0,0.00024,7]
[392989212,1762200636910,-181.709,0.00024,5]
[392989213,1762200636918,-950.0,0.00024037,2]
[392989214,1762200636928,-470.34302611,0.00024097,2]
[392989215,1762200636938,-2500.0,0.00024166,2]
[392989216,1762200636948,-760.0,0.00024329,2]
[392989217,1762200636957,-271.976407,0.0002438,7]
[392989218,1762200636967,-271.976407,0.0002438,7]
[392989219,1762200636977,-271.976407,0.0002438,7]
[392989220,1762200636987,-271.976407,0.0002438,7]
[392989221,1762200636996,-151.0,0.0002438,7]
[392989222,1762200637005,-395.033585,0.0002438,7]
[392989223,1762200637015,-395.033585,0.0002438,7]
[392989224,1762200637024,-395.033585,0.0002438,7]
[392989225,1762200637034,-395.033585,0.0002438,7]
[392989226,1762200637043,-1737.72771548,0.0002438,2]
[392989227,1762200637053,-1251.11,0.000244,14]
[392989228,1762200637064,-911.87,0.000244,7]
[392989229,1762200637073,-31156.72,0.000244,7]
[392989230,1762200637082,-151.0,0.000244,7]
[392989231,1762200637092,-152.428877,0.000244,7]
[392989232,1762200637101,-151.0,0.000244,7]
[392989233,1762200637110,-151.0,0.000244,7]
[392989234,1762200637119,-151.0,0.000244,7]
[392989235,1762200637129,-151.0,0.000244,7]
[392989236,1762200637138,-151.0,0.000244,7]
[392989237,1762200637147,-283.358704,0.000244,7]
[392989238,1762200637157,-3131.037279,0.000244,7]
[392989239,1762200637166,-3131.037279,0.000244,7]
[392989240,1762200637175,-3131.037279,0.000244,7]
[392989241,1762200637183,-3131.037279,0.000244,7]
[392989242,1762200637192,-161.844852,0.000244,7]
[392989243,1762200637202,-151.0,0.000244,7]
[392989244,1762200637211,-151.0,0.000244,7]
[392989245,1762200637221,-151.0,0.000244,7]
[392989246,1762200637231,-151.0,0.000244,7]
[392989247,1762200637240,-151.0,0.000244,7]
[392989248,1762200637249,-168.0,0.00024426,2]
[392989249,1762200637258,-301.1433787,0.00024452,2]
[392989250,1762200637267,-151.0,0.000245,10]
[392989251,1762200637276,-168.0,0.00024504,2]
[392989252,1762200637285,-823.0,0.0002457,2]
[392989253,1762200637294,-35681.47324887,0.0002465,2]
[392989254,1762200637302,-510.31091647,0.0002465,2]
[392989255,1762200637311,-271.976407,0.0002465,7]
[392989256,1762200637320,-271.976407,0.0002465,7]
[392989257,1762200637329,-271.976407,0.0002465,7]
[392989258,1762200637339,-271.976407,0.0002465,7]
[392989259,1762200637348,-151.0,0.0002465,7]
[392989260,1762200637358,-395.033585,0.0002465,7]
[392989261,1762200637370,-395.033585,0.0002465,7]
[392989262,1762200637380,-395.033585,0.0002465,7]
[392989263,1762200637389,-395.033585,0.0002465,7]
[392989264,1762200637398,-500.0,0.00024657,2]
[392989265,1762200637408,-500.0,0.00024657,2]
[392989266,1762200637418,-500.0,0.00024657,2]
[392989267,1762200637427,-500.0,0.00024657,2]
[392989268,1762200637436,-500.0,0.00024657,2]
[392989269,1762200637448,-494.76135564,0.00024657,2]
[392989270,1762200637457,-150.0,0.00024658,2]
[392989271,1762200637467,-380.0,0.00024658,2]
[392989272,1762200637477,-200.0,0.00024658,15]
[392989273,1762200637487,-200.0,0.00024658,2]
[392989274,1762200637496,-206.339006,0.00024658,7]
[392989275,1762200637505,-206.339006,0.00024658,7]
[392989276,1762200637515,-206.339006,0.00024658,7]
[392989277,1762200637525,-206.339006,0.00024658,7]
[392989278,1762200637534,-206.339006,0.00024658,7]
[392989279,1762200637544,-206.339006,0.00024658,7]
[392989280,1762200637553,-206.339006,0.00024658,7]
[392989281,1762200637562,-206.339006,0.00024658,7]
[392989283,1762200637571,-201.53171904,0.00024658,2]
[392989285,1762200637581,-3000.0,0.00024714,2]
[392989286,1762200637590,-1028.0,0.00024723,2]
[392989287,1762200637599,-154.371137,0.000248,7]
[392989288,1762200637609,-206.339006,0.000248,7]
[392989290,1762200637618,-206.339006,0.000248,7]
[392989292,1762200637627,-206.339006,0.000248,7]
[392989294,1762200637635,-206.339006,0.000248,7]
[392989296,1762200637645,-151.0,0.000248,7]
[392989298,1762200637654,-151.0,0.000248,7]
[392989300,1762200637663,-151.0,0.000248,7]
[392989302,1762200637672,-216.986517,0.000248,7]
[392989304,1762200637681,-151.0,0.000248,7]
[392989306,1762200637690,-5520.89786864,0.000248,2]
[392989308,1762200637699,-3131.037279,0.000248,7]
[392989310,1762200637709,-3131.037279,0.000248,7]
[392989312,1762200637719,-3131.037279,0.000248,7]
[392989314,1762200637730,-3131.037279,0.000248,7]
[392989316,1762200637739,-151.0,0.000248,7]
[392989318,1762200637748,-151.0,0.000248,7]
[392989320,1762200637758,-151.0,0.000248,7]
[392989322,1762200637767,-151.0,0.000248,7]
[392989323,1762200637777,-151.0,0.000248,7]
[392989324,1762200637787,-256.27611245,0.00024848,2]
[392989325,1762200637796,-860.0,0.00024877,2]
[392989327,1762200637805,-501.89980624,0.0002489,2]
[392989329,1762200637815,-1000.0,0.00024899,2]
[392989331,1762200637825,-271.976407,0.000249,7]
[392989332,1762200637834,-271.976407,0.000249,7]
[392989333,1762200637844,-271.976407,0.000249,7]
[392989335,1762200637853,-271.976407,0.000249,7]
[392989337,1762200637864,-151.0,0.000249,7]
[392989339,1762200637874,-395.033585,0.000249,7]
[392989341,1762200637884,-395.033585,0.000249,7]
[392989343,1762200637893,-395.033585,0.000249,7]
[392989345,1762200637902,-395.033585,0.000249,7]
[392989346,1762200637911,-244.689753,0.000249,2]
[392989347,1762200637920,-206.339006,0.000249,7]
[392989348,1762200637929,-206.339006,0.000249,7]
[392989350,1762200637939,-206.339006,0.000249,7]
[392989352,1762200637948,-206.339006,0.000249,7]
[392989354,1762200637957,-4795.55061276,0.000249,2]
[392989365,1762200638173,-2442.18721169,0.0002399,2]
[392989366,1762200638186,-22279.61664043,0.0002399,2]
[392989367,1762200638226,-822.42279838,0.0002399,2]
[392989368,1762200638239,-645.04527772,0.0002399,2]
[392989369,1762200638251,-1049.11911392,0.0002399,2]
[392989378,1762200640163,-207.84294615,0.00018971,2]
[392989380,1762200640173,-178.07935508,0.00018971,2]
[392989383,1762200640182,-625.81575489,0.00021805,2]
[392989385,1762200640191,-151.0,0.00022432,7]
[392989387,1762200640201,-3388.41412262,0.0002399,2]
[392989672,1762200643054,-625.81575486,0.00022554,2]
[392989675,1762200643064,-625.81575486,0.00023303,2]
[392989677,1762200643075,-40957.15953524,0.0002399,2]
[392989975,1762200646161,-28416.0353,0.0002399,2]
[392989977,1762200646171,-625.81575486,0.00024051,2]
[392989979,1762200646180,-3085.3,0.0002439,10]
[392989981,1762200646190,-151.0,0.000244,7]
[392989983,1762200646200,-151.0,0.000248,7]
[392989985,1762200646208,-49189.99988872,0.000249,2]
[392990195,1762200765672,770.0,0.00018,2]
[392990198,1762200906402,209.3281297,0.00037345,30]
[392990216,1762201713739,589.98932812,0.000149,2]
[392990217,1762201713992,1000.0,0.0001,2]
[392990218,1762201714624,1603.96611095,0.00018,2]
[392990219,1762201714646,1727.88794363,0.00018,2]
[392990258,1762201832342,-500.0,0.00018999,2]
[392990259,1762201832352,-570.69581989,0.00018999,2]
[392990260,1762201832361,-9549.81931933,0.00019,2]
[392990261,1762201832370,-257.0,0.00019,2]
[392990262,1762201832380,-150.0,0.000207,2]
[392990263,1762201832389,-300.0,0.00022398,2]
[392990264,1762201832403,-1024.10187874,0.000225,2]
[392990266,1762201832419,-177.0,0.000227,2]
[392990267,1762201832432,-809.728715,0.00022713,2]
[392990269,1762201832444,-500.0,0.000228,2]
[392990271,1762201832458,-5341.96556068,0.00023,2]
[392990273,1762201832471,-286.0,0.00023165,2]
[392990274,1762201832490,-286.0,0.0002323,2]
[392990276,1762201832505,-1339.29023781,0.00023271,2]
[392990279,1762201832519,-286.0,0.00023285,2]
[392990280,1762201832533,-286.0,0.00023295,2]
[392990282,1762201832547,-209.40437684,0.00023358,2]
[392990283,1762201832559,-286.0,0.00023364,2]
[392990284,1762201832572,-181.709,0.00023364,3]
[392990285,1762201832585,-50000.0,0.00023371,2]
[392990286,1762201832596,-286.0,0.00023409,2]
[392990287,1762201832607,-286.0,0.00023572,2]
[392990288,1762201832620,-286.0,0.00023628,2]
[392990289,1762201832633,-286.0,0.00023656,2]
[392990290,1762201832647,-1390.56443426,0.00023672,2]
[392990291,1762201832661,-286.0,0.00023713,2]
[392990292,1762201832676,-3925.44867421,0.00023745,4]
[392990293,1762201832688,-217.15233878,0.00023906,2]
[392990294,1762201832699,-5299.22,0.00024132,10]
[392990295,1762201832710,-4416.02,0.00024132,10]
[392990296,1762201832729,-3680.02,0.00024132,10]
[392990297,1762201832742,-114393.42098545,0.00024142,2]
[392990298,1762201832753,-160.0,0.000242,2]
[392990299,1762201832766,-420.0,0.00024329,2]
[392990300,1762201832780,-15753.3822433,0.00024351,2]
[392990301,1762201832791,-1943.4756087,0.00024351,2]
[392990302,1762201832801,-1390.56443426,0.0002438,2]
[392990303,1762201832813,-225.18697532,0.00024454,2]
[392990304,1762201832826,-625.81575486,0.000246,2]
[392990305,1762201832838,-25293.85287756,0.0002465,2]
[392990306,1762201832849,-316.6071875,0.00024658,2]
[392990307,1762201832861,-204.0,0.000247,2]
[392990308,1762201832873,-280324.55357751,0.000247,2]
[392990309,1762201833222,-1810.54911172,0.000247,2]
[392990310,1762201833236,-81679.43494516,0.000247,2]
[392990315,1762201838176,-291.3787701,0.00024493,2]
[392990316,1762201838186,-16.4577297,0.000247,2]
[392990330,1762201841302,-10507.0,0.000247,2]
[392990434,1762201846288,-3066.68,0.0002469,10]
[392990435,1762201846298,-634.32,0.000247,2]
[392990437,1762201846310,-48552.28495935,0.000247,2]
[392990439,1762201846450,-16824.11186084,0.000247,2]
[392990440,1762201846461,-22787.89700464,0.000247,2]
[392990453,1762202882490,-0.35447816,0.00021702,3]
[392990454,1762202882503,-1457.29104368,0.00021702,3]
[392990496,1762203032406,-254.24040385,0.00021593,6]
[392990498,1762203032416,-150.0,0.00022291,2]
[392990500,1762203032425,-162.858639,0.00022708,2]
[392990502,1762203032435,-2843.6870425,0.00022799,2]
[392990504,1762203032444,-500.0,0.0002337,2]
[392990506,1762203032454,-500.0,0.0002337,2]
[392990508,1762203032463,-400.0,0.00023407,2]
[392990510,1762203032472,-300.0,0.00023407,2]
[392990512,1762203032482,-300.0,0.00023407,2]
[392990514,1762203032491,-563.41064666,0.00023407,2]
[392990517,1762203032501,-5577.006433,0.00023408,2]
[392990521,1762203032510,-22719.5841963,0.00023408,2]
[392990525,1762203032519,-999.0,0.00023556,2]
[392990528,1762203032528,-1128.90901986,0.00023672,2]
[392990531,1762203032537,-355.77,0.00023744,2]
[392990533,1762203032546,-1025.0,0.00024121,2]
[392990535,1762203032556,-176.0,0.00024161,2]
[392990537,1762203032564,-176.0,0.00024162,2]
[392990539,1762203032573,-1025.0,0.00024214,2]
[392990541,1762203032583,-177.0,0.00024291,2]
[392990543,1762203032592,-1025.0,0.00024294,2]
[392990545,1762203032600,-1128.90901986,0.0002438,2]
[392990546,1762203032609,-209.40437684,0.00024439,2]
[392990549,1762203032619,-1025.0,0.00024444,2]
[392990551,1762203032629,-18601.823055,0.00024454,2]
[392990553,1762203032638,-175.1945877,0.00024454,2]
[392990555,1762203032647,-1457.6067065,0.00024454,2]
[392990557,1762203032657,-3377.5718682,0.00024454,2]
[392990558,1762203032666,-2309.08,0.0002449,10]
[392990560,1762203032675,-2170.72,0.0002449,10]
[392990562,1762203032684,-1808.93,0.0002449,10]
[392990565,1762203032693,-1025.0,0.00024494,2]
[392990566,1762203032703,-14073.86,0.000245,2]
[392990568,1762203032712,-14073.86,0.000245,2]
[392990570,1762203032721,-14073.86,0.000245,2]
[392990571,1762203032730,-14073.86,0.000245,2]
[392990572,1762203032740,-14073.86,0.000245,2]
[392990573,1762203032840,-11412.14832974,0.000245,2]
[392990574,1762203032850,-168.0,0.00024569,2]
[392990575,1762203032860,-500.0,0.00024573,2]
[392990576,1762203032869,-377398.64473215,0.000246,2]
[392990710,1762203040536,-914.4441,0.0002459,10]
[392990712,1762203040548,-592.9959,0.0002459,10]
[392990713,1762203040557,-49827.0971308,0.000246,2]
[392990714,1762203040592,-6131.90337511,0.000246,2]
[392991007,1762203043544,-25636.49666668,0.000246,2]
[392991023,1762203043677,-59242.35750967,0.000246,2]
[392991166,1762203046419,-49589.99999938,0.000246,2]
[392991174,1762203046477,-1283.15467251,0.000246,2]
[392991203,1762203046690,-288.74,0.000246,2]
[392992724,1762203412747,604.6,0.00015,24]
[392992726,1762203439297,692.091915,0.00013699,2]
[392992752,1762204232601,-330.12991417,0.000186,2]
[392992754,1762204232659,-169.87008583,0.000186,2]
[392992756,1762204232670,-150.0,0.00018639,2]
[392992758,1762204232680,-503.84,0.00018678,5]
[392992760,1762204232691,-251.0,0.00018778,2]
[392992762,1762204232701,-503.84,0.00018878,25]
[392992764,1762204232711,-392.28903135,0.00019696,2]
[392992766,1762204232721,-692.091915,0.00020187,2]
[392992768,1762204232731,-177.0,0.00020639,2]
[392992770,1762204232741,-200.0,0.00021488,15]
[392992772,1762204232751,-579.82802454,0.00021593,2]
[392992774,1762204232761,-404.864357,0.00022261,2]
[392992776,1762204232771,-204.0,0.00022639,2]
[392992778,1762204232782,-1333.79113743,0.00023672,2]
[392992780,1762204232792,-259.0,0.00023989,2]
[392992783,1762204232803,-300.0,0.00023989,2]
[392992786,1762204232813,-28416.0353,0.0002399,2]
[392992789,1762204232822,-342.565655,0.00024402,2]
[392992791,1762204232831,-501.72215712,0.00024473,2]
[392992792,1762204232844,-503.11440266,0.00024473,2]
[392992793,1762204232854,-500.0,0.00024473,2]
[392992794,1762204232864,-500.0,0.00024473,2]
[392992795,1762204232873,-625.81575486,0.00024473,2]
[392992796,1762204232883,-209.40437684,0.00024485,2]
[392992797,1762204232892,-853.79,0.0002449,10]
[392992798,1762204232901,-1628.12,0.0002449,10]
[392992799,1762204232911,-1628.12,0.0002449,10]
[392992800,1762204232921,-1085.42,0.0002449,10]
[392992801,1762204232930,-564878.34027192,0.000245,2]
[392992835,1762204238687,-4339.19976288,0.00024427,2]
[392992836,1762204238699,-550.9,0.00024427,2]
[392992970,1762204707531,169.082007,0.0001182,2]
[392992997,1762205431882,-351.0,0.00022201,2]
[392992998,1762205431893,-475.88484546,0.00022202,2]
[392992999,1762205431903,-1901.63584246,0.00022202,2]
[392993000,1762205431912,-150.0,0.00023171,2]
[392993001,1762205431921,-169.0802587,0.0002337,2]
[392993002,1762205431931,-161.0839225,0.0002339,2]
[392993003,1762205431940,-500.0,0.0002355,2]
[392993005,1762205431949,-500.0,0.0002355,2]
[392993007,1762205431958,-1143.46727708,0.00023672,2]
[392993009,1762205431968,-300.0,0.00023699,2]
[392993012,1762205431977,-500.0,0.000237,10]
[392993014,1762205431987,-510.72209854,0.000237,10]
[392993016,1762205431996,-500.0,0.000237,10]
[392993018,1762205432005,-500.0,0.000237,2]
[392993020,1762205432015,-410.21768499,0.000237,2]
[392993022,1762205432024,-1000.0,0.00024098,2]
[392993024,1762205432033,-286.0,0.00024252,2]
[392993026,1762205432042,-1051.75039367,0.00024287,2]
[392993028,1762205432051,-1372.6315018,0.000243,2]
[392993030,1762205432061,-13196.56015714,0.000243,2]
[392993032,1762205432070,-286.0,0.0002436,2]
[392993034,1762205432079,-501.60103285,0.00024373,2]
[392993036,1762205432089,-500.0,0.00024373,2]
[392993038,1762205432098,-209.40437684,0.00024385,2]
[392993040,1762205432107,-477.83,0.0002439,10]
[392993041,1762205432118,-685000.0,0.000244,2]
[392993042,1762205432127,-7317.38,0.000244,2]
[392993043,1762205432136,-308.309089,0.00024402,2]
[392993044,1762205432145,-500.0,0.00024473,2]
[392993045,1762205432155,-1000.0,0.00024499,2]
[392993046,1762205432164,-1000.0,0.00024499,2]
[392993047,1762205432175,-1000.0,0.00024499,2]
[392993048,1762205432184,-1052.06200516,0.00024499,2]
[392993049,1762205432193,-152.0,0.000245,3]
[392993050,1762205432202,-152.0,0.000245,3]
[392993051,1762205432211,-152.0,0.000245,3]
[392993052,1762205432220,-152.0,0.000245,3]
[392993053,1762205432229,-152.0,0.000245,3]
[392993054,1762205432238,-152.0,0.000245,3]
[392993055,1762205432247,-152.0,0.000245,3]
[392993056,1762205432341,-152.0,0.000245,3]
[392993057,1762205432351,-152.0,0.000245,3]
[392993058,1762205432361,-152.0,0.000245,3]
[392993059,1762205432372,-152.0,0.000245,3]
[392993060,1762205432381,-152.0,0.000245,3]
[392993061,1762205432391,-152.0,0.000245,3]
[392993062,1762205432401,-152.0,0.000245,3]
[392993063,1762205432410,-152.0,0.000245,3]
[392993064,1762205432419,-222.69816744,0.000245,3]
[392993065,1762205432428,-286.0,0.00024507,2]
[392993066,1762205432437,-500.0,0.00024516,2]
[392993067,1762205432447,-3988.2860251,0.00024516,2]
[392993068,1762205432455,-1712.4493242,0.00024516,2]
[392993069,1762205432465,-46576.1253617,0.00024516,2]
[392993070,1762205432475,-3468.88919148,0.00024563,4]
[392993071,1762205432485,-500.0,0.00024573,2]
[392993072,1762205432495,-526.52782371,0.000246,2]
[392993073,1762205432504,-410.01041087,0.000246,2]
[392993074,1762205432514,-625.07566657,0.000246,2]
[392993075,1762205432523,-2106.11129482,0.000246,2]
[392993076,1762205432532,-1000.0,0.00024646,2]
[392993077,1762205432541,-176.0,0.00024651,2]
[392993078,1762205432550,-286.0,0.00024694,2]
[392993079,1762205432559,-7317.38,0.000247,2]
[392993080,1762205432568,-1025.0,0.00024726,2]
[392993081,1762205432577,-1143.46727708,0.00024734,2]
[392993082,1762205432586,-1025.0,0.00024788,2]
[392993083,1762205432596,-151.0,0.000248,5]
[392993084,1762205432604,-61109.2890734,0.000248,2]
[392993085,1762205432615,-1025.0,0.00024806,2]
[392993086,1762205432624,-176.0,0.00024858,2]
[392993087,1762205432633,-500.0,0.00024873,2]
[392993088,1762205432643,-500.0,0.00024873,2]
[392993089,1762205432652,-500.0,0.00024873,2]
[392993090,1762205432664,-20090.30982306,0.0002489,2]
[392993091,1762205432686,-279.45320134,0.0002489,2]
[392993092,1762205432696,-160.0,0.00024897,2]
[392993093,1762205432706,-1042.26,0.000249,14]
[392993094,1762205432716,-673.76,0.000249,7]
[392993095,1762205432725,-26982.78,0.000249,7]
[392993096,1762205432736,-7317.38,0.000249,2]
[392993097,1762205432746,-151.0,0.000249,7]
[392993098,1762205432755,-151.0,0.000249,7]
[392993099,1762205432766,-151.0,0.000249,7]
[392993100,1762205432775,-151.0,0.000249,7]
[392993101,1762205432786,-151.0,0.000249,7]
[392993102,1762205432799,-404.18480381,0.000249,7]
[392993103,1762205432810,-151.0,0.000249,2]
[392993104,1762205432820,-298.194053,0.000249,7]
[392993105,1762205432830,-151.0,0.000249,2]
[392993106,1762205432842,-1252.414912,0.000249,7]
[392993107,1762205432852,-1252.414912,0.000249,7]
[392993108,1762205432866,-66836.584488,0.000249,2]
[392993109,1762205432878,-151.0,0.000249,7]
[392993110,1762205432889,-151.0,0.000249,7]
[392993111,1762205432899,-151.0,0.000249,7]
[392993112,1762205432909,-151.0,0.000249,7]
[392993113,1762205432919,-151.0,0.000249,7]
[392993114,1762205432929,-1000.0,0.00024921,2]
[392993115,1762205432938,-217.15233878,0.00024933,2]
[392993116,1762205432949,-176.0,0.00024948,2]
[392993117,1762205432959,-501.67427501,0.00024973,2]
[392993118,1762205432969,-500.0,0.00024973,2]
[392993119,1762205432979,-500.0,0.00024973,2]
[392993120,1762205432989,-79077.7537473,0.00025,15]
[392993121,1762205432999,-500.0,0.00025,2]
[392993122,1762205433009,-2244.17806361,0.00025,2]
[392993123,1762205433019,-346.49617754,0.00025,2]
[392993124,1762205433028,-151.0,0.00025,7]
[392993125,1762205433038,-151.0,0.00025,7]
[392993126,1762205433048,-151.0,0.00025,2]
[392993127,1762205433058,-151.0,0.00025,2]
[392993128,1762205433067,-151.0,0.00025,2]
[392993129,1762205433077,-151.0,0.00025,2]
[392993130,1762205433086,-10000.74340248,0.00025,2]
[392993131,1762205433095,-804.84587689,0.00025021,2]
[392993132,1762205433104,-168.0,0.00025064,2]
[392993133,1762205433115,-151.0,0.00025121,7]
[392993134,1762205433125,-151.0,0.00025121,7]
[392993135,1762205433136,-151.0,0.00025121,7]
[392993136,1762205433145,-181.905631,0.00025121,7]
[392993137,1762205433155,-151.0,0.00025121,2]
[392993138,1762205433165,-151.483029,0.00025121,2]
[392993139,1762205433174,-1252.414912,0.00025121,7]
[392993140,1762205433184,-1252.414912,0.00025121,7]
[392993141,1762205433194,-151.0,0.00025121,7]
[392993142,1762205433204,-177.0,0.00025171,2]
[392993143,1762205433215,-574.76421022,0.000252,5]
[392993144,1762205433224,-7317.38,0.000252,2]
[392993145,1762205433234,-151.0,0.000252,7]
[392993146,1762205433244,-151.0,0.000252,7]
[392993147,1762205433253,-151.0,0.000252,7]
[392993148,1762205433263,-151.0,0.000252,7]
[392993149,1762205433272,-3573.0,0.00025204,2]
[392993150,1762205433282,-28233.54003157,0.00025206,2]
[392993151,1762205433292,-308.309089,0.00025253,2]
[392993152,1762205433302,-500.0,0.00025273,2]
[392993153,1762205433312,-150.0,0.00025273,2]
[392993154,1762205433321,-622.64154827,0.00025273,2]
[392993155,1762205433330,-500.0,0.00025273,2]
[392993156,1762205433341,-168.0,0.00025395,2]
[392993157,1762205433352,-1005.79762792,0.00025421,2]
[392993158,1762205433362,-500.0,0.00025421,2]
[392993159,1762205433376,-200.0,0.00025445,2]
[392993160,1762205433386,-516.76732216,0.00025468,2]
[392993161,1762205433395,-225.18697532,0.00025481,2]
[392993162,1762205433404,-7317.38,0.000255,2]
[392993163,1762205433414,-168.0,0.00025576,2]
[392993164,1762205433423,-176.0,0.00025692,2]
[392993165,1762205433433,-420.0,0.00025708,2]
[392993166,1762205433446,-168.0,0.00025728,2]
[392993167,1762205433456,-1143.46727708,0.00025797,3]
[392993168,1762205433465,-7317.38,0.000258,2]
[392993169,1762205433474,-168.0,0.00025809,2]
[392993170,1762205433484,-300.0,0.00025821,2]
[392993171,1762205433493,-310.66448984,0.00025891,2]
[392993172,1762205433503,-168.0,0.00025968,2]
[392993173,1762205433512,-1000.0,0.00026,8]
[392993174,1762205433522,-835.4213705,0.00026,5]
[392993175,1762205433531,-7317.38,0.00026,2]
[392993176,1762205433541,-233.51889341,0.00026029,2]
[392993177,1762205433550,-308.309089,0.00026104,2]
[392993178,1762205433559,-7317.38,0.000263,2]
[392993179,1762205433568,-151.06327853,0.00026368,2]
[392993180,1762205433578,-242.15909246,0.00026577,2]
[392993181,1762205433588,-7317.38,0.000266,2]
[392993182,1762205433597,-692.091915,0.00026676,2]
[392993183,1762205433607,-4406.0,0.00026717,2]
[392993184,1762205433619,-150.0,0.00026773,2]
[392993185,1762205433629,-673.76,0.000268,7]
[392993186,1762205433638,-26982.78,0.000268,7]
[392993187,1762205433648,-151.0,0.000268,7]
[392993188,1762205433657,-151.0,0.000268,7]
[392993189,1762205433667,-151.0,0.000268,2]
[392993190,1762205433676,-151.0,0.000268,2]
[392993191,1762205433686,-151.0,0.000268,2]
[392993192,1762205433695,-151.0,0.000268,2]
[392993193,1762205433705,-7317.38,0.000268,2]
[392993194,1762205433714,-151.0,0.000268,7]
[392993195,1762205433724,-151.0,0.000268,7]
[392993196,1762205433733,-151.0,0.000268,7]
[392993197,1762205433743,-404.18480381,0.000268,7]
[392993198,1762205433752,-151.0,0.000268,2]
[392993199,1762205433762,-1252.414912,0.000268,7]
[392993200,1762205433772,-1252.414912,0.000268,7]
[392993201,1762205433782,-151.0,0.000268,7]
[392993202,1762205433792,-158.402272,0.000268,7]
[392993203,1762205433805,-151.0,0.000268,7]